fUST/lending_fUST_20240727
["ID","MTS","AMOUNT","RATE_DAILY","PERIOD"]
[333276301,1722015046971,-505.68830696,0.00013972,2]
[333276302,1722015046980,-1646.68,0.00013972,2]
[333276303,1722015046990,-500.0,0.00013972,2]
[333276304,1722015046999,-500.0,0.00013972,2]
[333276305,1722015047009,-896.92,0.00013972,2]
[333276306,1722015047019,-507.03,0.00013972,2]
[333276307,1722015047031,-151.0,0.00013972,2]
[333276308,1722015047041,-151.0,0.00013972,2]
[333276309,1722015047050,-500.0,0.00013972,2]
[333276310,1722015047060,-500.0,0.00013972,2]
[333276311,1722015047070,-642.72,0.00013972,2]
[333276312,1722015047079,-534.14,0.00013972,2]
[333276313,1722015047089,-500.0,0.00013972,2]
[333276314,1722015047099,-3569.74,0.00013972,2]
[333276315,1722015047110,-500.0,0.00013972,2]
[333276316,1722015047119,-500.0,0.00013972,2]
[333276317,1722015047131,-500.0,0.00013972,2]
[333276318,1722015047140,-634.31,0.00013972,2]
[333276319,1722015047149,-151.0,0.00013972,2]
[333276320,1722015047177,-151.0,0.00013972,2]
[333276321,1722015047187,-500.0,0.00013972,2]
[333276322,1722015047196,-1446.14,0.00013972,2]
[333276323,1722015047205,-417.85646683,0.00013972,2]
[333276324,1722015047215,-558.32,0.00013972,2]
[333276325,1722015047224,-1466.16,0.00013972,2]
[333276326,1722015047234,-500.0,0.00013972,2]
[333276327,1722015047243,-815.3,0.00013972,2]
[333276328,1722015047252,-3040.98,0.00013972,2]
[333276329,1722015047261,-500.0,0.00013972,2]
[333276330,1722015047271,-153.125742,0.00013972,2]
[333276331,1722015047281,-500.0,0.00013972,2]
[333276332,1722015047290,-500.0,0.00013972,2]
[333276333,1722015047299,-528.24,0.00013972,2]
[333276334,1722015047309,-698.58,0.00013972,2]
[333276335,1722015047318,-500.0,0.00013972,2]
[333276336,1722015047327,-500.0,0.00013972,2]
[333276337,1722015047337,-820.9,0.00013972,2]
[333276338,1722015047346,-218.394194,0.00013972,2]
[333276339,1722015047359,-218.394194,0.00013972,2]
[333276340,1722015047369,-500.0,0.00013972,2]
[333276341,1722015047379,-500.0,0.00013972,2]
[333276342,1722015047388,-218.394194,0.00013972,2]
[333276343,1722015047397,-218.394194,0.00013972,2]
[333276344,1722015047406,-963.17,0.00013972,2]
[333276345,1722015047415,-763.15,0.00013972,2]
[333276346,1722015047424,-500.0,0.00013972,2]
[333276347,1722015047434,-622.23,0.00013972,2]
[333276348,1722015047443,-265.789588,0.00013972,2]
[333276349,1722015047452,-500.0,0.00013972,2]
[333276350,1722015047462,-500.0,0.00013972,2]
[333276351,1722015047471,-500.0,0.00013972,2]
[333276352,1722015047481,-504.46436506,0.00013972,2]
[333276353,1722015047493,-1187.44,0.00013972,2]
[333276354,1722015047504,-506.44,0.00013972,2]
[333276355,1722015047514,-624.209607,0.00013972,2]
[333276356,1722015047526,-500.0,0.00013972,2]
[333276357,1722015047538,-624.209607,0.00013972,2]
[333276358,1722015047549,-500.0,0.00013972,2]
[333276359,1722015047559,-649.02039044,0.00013972,2]
[333276360,1722015047569,-500.0,0.00013972,2]
[333276361,1722015047578,-500.0,0.00013972,2]
[333276362,1722015047587,-624.209607,0.00013972,2]
[333276363,1722015047596,-624.209607,0.00013972,2]
[333276364,1722015047607,-500.0,0.00013972,2]
[333276365,1722015047617,-882.9,0.00013972,2]
[333276366,1722015047628,-500.0,0.00013972,2]
[333276367,1722015047637,-500.0,0.00013972,2]
[333276368,1722015047646,-500.0,0.00013972,2]
[333276369,1722015047655,-500.0,0.00013972,2]
[333276370,1722015047665,-1757.92,0.00013972,2]
[333276371,1722015047674,-500.0,0.00013972,2]
[333276372,1722015047683,-569.81,0.00013972,2]
[333276373,1722015047692,-151.0,0.00013972,2]
[333276374,1722015047701,-151.0,0.00013972,2]
[333276375,1722015047711,-1000.0,0.00014,14]
[333276376,1722015047720,-1409.0,0.0001417,2]
[333276377,1722015047730,-150.0,0.0001417,2]
[333276378,1722015047739,-505.0,0.0001417,2]
[333276379,1722015047749,-600.0,0.00014208,2]
[333276380,1722015047758,-157.228433,0.0001421,2]
[333276381,1722015047767,-197.909922,0.0001421,2]
[333276382,1722015047777,-152.093192,0.0001421,2]
[333276383,1722015047786,-192.973907,0.0001421,2]
[333276384,1722015047796,-283.466988,0.0001421,2]
[333276385,1722015047806,-18821.95271475,0.00014226,5]
[333276386,1722015047816,-370.284732,0.00014226,2]
[333276387,1722015047826,-370.284732,0.00014226,2]
[333276388,1722015047836,-151.0,0.00014226,2]
[333276389,1722015047857,-151.0,0.00014226,2]
[333276390,1722015047868,-157.204566,0.00014226,2]
[333276391,1722015047879,-157.204566,0.00014226,2]
[333276392,1722015047888,-383.143264,0.00014226,2]
[333276393,1722015047898,-383.143264,0.00014226,2]
[333276394,1722015047908,-960.188475,0.00014226,2]
[333276395,1722015047918,-801.343558,0.00014226,2]
[333276396,1722015047928,-801.343558,0.00014226,2]
[333276397,1722015047938,-281.694257,0.00014236,2]
[333276398,1722015047953,-370.284732,0.00014236,2]
[333276399,1722015047963,-281.694257,0.00014236,2]
[333276400,1722015047975,-370.284732,0.00014236,2]
[333276401,1722015047986,-151.0,0.00014236,2]
[333276402,1722015047996,-211.71623,0.00014236,2]
[333276403,1722015048007,-211.71623,0.00014236,2]
[333276404,1722015048018,-151.0,0.00014236,2]
[333276405,1722015048031,-500.0,0.00014246,2]
[333276406,1722015048041,-500.0,0.00014246,2]
[333276407,1722015048052,-500.0,0.00014246,2]
[333276408,1722015048063,-500.0,0.00014246,2]
[333276409,1722015048074,-500.0,0.00014246,2]
[333276410,1722015048084,-505.86713518,0.00014246,2]
[333276411,1722015048096,-281.694257,0.00014246,2]
[333276412,1722015048107,-281.694257,0.00014246,2]
[333276413,1722015048117,-500.0,0.00014246,2]
[333276414,1722015048128,-485.13906407,0.00014246,2]
[333276415,1722015048139,-151.0,0.00014246,2]
[333276416,1722015048150,-151.007395,0.00014246,2]
[333276417,1722015048161,-157.204566,0.00014246,2]
[333276418,1722015048172,-157.204566,0.00014246,2]
[333276419,1722015048182,-383.143264,0.00014246,2]
[333276420,1722015048193,-500.0,0.00014246,2]
[333276421,1722015048203,-500.0,0.00014246,2]
[333276422,1722015048213,-500.0,0.00014246,2]
[333276423,1722015048224,-383.143264,0.00014246,2]
[333276424,1722015048235,-881.59,0.00014246,2]
[333276425,1722015048245,-500.0,0.00014246,2]
[333276426,1722015048255,-500.0,0.00014246,2]
[333276427,1722015048267,-500.0,0.00014246,2]
[333276428,1722015048278,-501.8,0.00014246,2]
[333276429,1722015048288,-500.0,0.00014246,2]
[333276430,1722015048298,-596.1,0.00014246,2]
[333276431,1722015048308,-736.52,0.00014246,2]
[333276432,1722015048318,-500.0,0.00014246,2]
[333276433,1722015048329,-500.0,0.00014246,2]
[333276434,1722015048339,-500.0,0.00014246,2]
[333276435,1722015048349,-646.7,0.00014246,2]
[333276436,1722015048359,-662.45,0.00014246,2]
[333276437,1722015048369,-500.0,0.00014246,2]
[333276438,1722015048378,-770.49,0.00014246,2]
[333276439,1722015048388,-616.59630349,0.00014246,2]
[333276440,1722015048397,-500.0,0.00014246,2]
[333276441,1722015048407,-671.98,0.00014246,2]
[333276442,1722015048416,-950.24,0.00014246,2]
[333276443,1722015048427,-728.9,0.00014246,2]
[333276444,1722015048437,-500.0,0.00014246,2]
[333276445,1722015048447,-500.0,0.00014246,2]
[333276446,1722015048459,-500.0,0.00014246,2]
[333276447,1722015048470,-500.0,0.00014246,2]
[333276448,1722015048480,-151.0,0.00014246,2]
[333276449,1722015048490,-151.0,0.00014246,2]
[333276450,1722015048500,-151.0,0.00014246,2]
[333276451,1722015048510,-500.0,0.00014246,2]
[333276452,1722015048521,-500.0,0.00014246,2]
[333276453,1722015048531,-500.0,0.00014246,2]
[333276454,1722015048542,-505.60113204,0.00014246,2]
[333276455,1722015048553,-500.0,0.00014246,2]
[333276456,1722015048563,-500.0,0.00014246,2]
[333276457,1722015048573,-500.0,0.00014246,2]
[333276458,1722015048583,-500.0,0.00014246,2]
[333276459,1722015048593,-500.0,0.00014246,2]
[333276460,1722015048604,-540.08,0.00014246,2]
[333276461,1722015048614,-840.77,0.00014246,2]
[333276462,1722015048626,-503.48151961,0.00014246,2]
[333276463,1722015048636,-500.0,0.00014246,2]
[333276464,1722015048646,-616.77,0.00014246,2]
[333276465,1722015048657,-810.76,0.00014246,2]
[333276466,1722015048667,-500.0,0.00014246,2]
[333276467,1722015048680,-500.0,0.00014246,2]
[333276468,1722015048690,-1028.1,0.00014246,2]
[333276469,1722015048700,-500.0,0.00014246,2]
[333276470,1722015048710,-1487.11,0.00014246,2]
[333276471,1722015048720,-352.51399078,0.00014246,2]
[333276472,1722015048730,-500.0,0.00014246,2]
[333276473,1722015048741,-500.0,0.00014246,2]
[333276474,1722015048751,-500.0,0.00014246,2]
[333276475,1722015048761,-500.0,0.00014246,2]
[333276476,1722015048770,-500.0,0.00014246,2]
[333276477,1722015048780,-500.0,0.00014246,2]
[333276478,1722015048791,-500.0,0.00014246,2]
[333276479,1722015048803,-512.64,0.00014246,2]
[333276480,1722015048814,-500.0,0.00014246,2]
[333276481,1722015048825,-531.72804188,0.00014246,2]
[333276482,1722015048836,-500.0,0.00014246,2]
[333276483,1722015048846,-500.0,0.00014246,2]
[333276484,1722015048856,-500.0,0.00014246,2]
[333276485,1722015048867,-500.0,0.00014246,2]
[333276486,1722015048876,-500.0,0.00014246,2]
[333276487,1722015048886,-500.0,0.00014246,2]
[333276488,1722015048896,-550.75,0.00014246,2]
[333276489,1722015048905,-500.0,0.00014246,2]
[333276490,1722015048915,-500.0,0.00014246,2]
[333276491,1722015048926,-509.84548094,0.00014246,2]
[333276492,1722015048937,-500.0,0.00014246,2]
[333276493,1722015048947,-542.6,0.00014246,2]
[333276494,1722015048958,-513.41327555,0.00014246,2]
[333276495,1722015048968,-500.0,0.00014246,2]
[333276496,1722015048978,-500.0,0.00014246,2]
[333276497,1722015048988,-195.67935358,0.00014246,2]
[333276498,1722015048998,-500.0,0.00014246,2]
[333276499,1722015049009,-151.0,0.00014246,2]
[333276500,1722015049023,-151.0,0.00014246,2]
[333276501,1722015049034,-500.0,0.00014246,2]
[333276502,1722015049045,-1877.8,0.00014246,2]
[333276503,1722015049056,-500.0,0.00014246,2]
[333276504,1722015049067,-500.0,0.00014246,2]
[333276505,1722015049077,-482.560045,0.00014246,2]
[333276506,1722015049088,-482.560045,0.00014246,2]
[333276507,1722015049100,-1008.59,0.00014246,2]
[333276508,1722015049110,-500.0,0.00014246,2]
[333276509,1722015049121,-760.62,0.00014246,2]
[333276510,1722015049132,-842.41,0.00014246,2]
[333276511,1722015049142,-5471.36,0.00014246,2]
[333276512,1722015049152,-500.0,0.00014246,2]
[333276513,1722015049163,-151.0,0.00014246,2]
[333276514,1722015049174,-500.0,0.00014246,2]
[333276515,1722015049185,-719.02,0.00014246,2]
[333276516,1722015049195,-1273.27,0.00014246,2]
[333276517,1722015049206,-500.0,0.00014246,2]
[333276518,1722015049216,-622.95,0.00014246,2]
[333276519,1722015049227,-891.66,0.00014246,2]
[333276520,1722015049237,-500.0,0.00014246,2]
[333276521,1722015049247,-500.0,0.00014246,2]
[333276522,1722015049259,-500.0,0.00014246,2]
[333276523,1722015049270,-500.0,0.00014246,2]
[333276524,1722015049280,-500.0,0.00014246,2]
[333276525,1722015049290,-4988.99,0.00014246,2]
[333276526,1722015049300,-500.0,0.00014246,2]
[333276527,1722015049310,-843.52,0.00014246,2]
[333276528,1722015049320,-500.0,0.00014246,2]
[333276529,1722015049331,-151.0,0.00014246,2]
[333276530,1722015049342,-500.0,0.00014246,2]
[333276531,1722015049352,-1051.937681,0.00014246,2]
[333276532,1722015049363,-696.33,0.00014246,2]
[333276533,1722015049374,-1051.937681,0.00014246,2]
[333276534,1722015049384,-1876.22,0.00014246,2]
[333276535,1722015049395,-500.0,0.00014246,2]
[333276536,1722015049406,-500.0,0.00014246,2]
[333276537,1722015049416,-1724.63,0.00014246,2]
[333276538,1722015049427,-611.84,0.00014246,2]
[333276539,1722015049438,-1081.85,0.00014246,2]
[333276540,1722015049448,-500.0,0.00014246,2]
[333276541,1722015049459,-151.0,0.00014246,2]
[333276542,1722015049470,-500.0,0.00014246,2]
[333276543,1722015049480,-500.0,0.00014246,2]
[333276544,1722015049490,-868.13,0.00014246,2]
[333276545,1722015049501,-500.0,0.00014246,2]
[333276546,1722015049511,-757.57,0.00014246,2]
[333276547,1722015049520,-509.82,0.00014246,2]
[333276548,1722015049531,-1646.68,0.00014246,2]
[333276549,1722015049541,-500.0,0.00014246,2]
[333276550,1722015049552,-500.0,0.00014246,2]
[333276551,1722015049563,-896.92,0.00014246,2]
[333276552,1722015049573,-507.03,0.00014246,2]
[333276553,1722015049583,-151.0,0.00014246,2]
[333276554,1722015049593,-500.0,0.00014246,2]
[333276555,1722015049604,-500.0,0.00014246,2]
[333276556,1722015049614,-642.72,0.00014246,2]
[333276557,1722015049625,-534.14,0.00014246,2]
[333276558,1722015049636,-3569.74,0.00014246,2]
[333276559,1722015049646,-500.0,0.00014246,2]
[333276560,1722015049656,-516.35615577,0.00014246,2]
[333276561,1722015049667,-500.0,0.00014246,2]
[333276562,1722015049678,-634.31,0.00014246,2]
[333276563,1722015049689,-500.0,0.00014246,2]
[333276564,1722015049700,-1446.14,0.00014246,2]
[333276565,1722015049710,-558.32,0.00014246,2]
[333276566,1722015049722,-1466.16,0.00014246,2]
[333276567,1722015049732,-500.0,0.00014246,2]
[333276568,1722015049742,-815.3,0.00014246,2]
[333276569,1722015049753,-3040.98,0.00014246,2]
[333276570,1722015049764,-500.0,0.00014246,2]
[333276571,1722015049774,-480.62,0.00014246,2]
[333276572,1722015049785,-698.58,0.00014246,2]
[333276573,1722015049795,-500.0,0.00014246,2]
[333276574,1722015049805,-500.0,0.00014246,2]
[333276575,1722015049815,-820.9,0.00014246,2]
[333276576,1722015049826,-218.394194,0.00014246,2]
[333276577,1722015049837,-500.0,0.00014246,2]
[333276578,1722015049847,-218.394194,0.00014246,2]
[333276579,1722015049858,-963.17,0.00014246,2]
[333276580,1722015049869,-763.15,0.00014246,2]
[333276581,1722015049879,-622.23,0.00014246,2]
[333276582,1722015049890,-500.0,0.00014246,2]
[333276583,1722015049900,-1187.44,0.00014246,2]
[333276584,1722015049910,-506.44,0.00014246,2]
[333276585,1722015049920,-624.209607,0.00014246,2]
[333276586,1722015049930,-500.0,0.00014246,2]
[333276587,1722015049940,-500.0,0.00014246,2]
[333276588,1722015049950,-624.209607,0.00014246,2]
[333276589,1722015050151,-500.0,0.00014246,2]
[333276590,1722015050161,-882.9,0.00014246,2]
[333276591,1722015050171,-500.0,0.00014246,2]
[333276592,1722015050182,-500.0,0.00014246,2]
[333276593,1722015050194,-500.0,0.00014246,2]
[333276594,1722015050204,-500.0,0.00014246,2]
[333276595,1722015050216,-1757.92,0.00014246,2]
[333276596,1722015050228,-500.0,0.00014246,2]
[333276597,1722015050238,-569.81,0.00014246,2]
[333276598,1722015050249,-151.0,0.00014246,2]
[333276599,1722015050258,-750.0,0.00014247,2]
[333276600,1722015050270,-306.0,0.00014247,2]
[333276601,1722015050279,-413.4893308,0.00014247,2]
[333276602,1722015050289,-153.0,0.00014259,2]
[333276603,1722015050300,-153.0,0.00014259,2]
[333276604,1722015050311,-153.0,0.00014259,2]
[333276605,1722015050322,-153.0,0.00014259,2]
[333276606,1722015050332,-153.0,0.00014259,2]
[333276607,1722015050342,-153.0,0.00014259,2]
[333276608,1722015050352,-153.0,0.00014259,2]
[333276609,1722015050364,-153.0,0.00014259,2]
[333276610,1722015050374,-153.0,0.00014259,2]
[333276611,1722015050383,-153.0,0.00014259,2]
[333276612,1722015050393,-153.0,0.00014259,2]
[333276613,1722015050402,-153.0,0.00014259,2]
[333276614,1722015050411,-153.0,0.00014259,2]
[333276615,1722015050422,-153.0,0.00014259,2]
[333276616,1722015050432,-153.0,0.00014259,2]
[333276617,1722015050442,-153.0,0.00014259,2]
[333276618,1722015050453,-153.0,0.00014259,2]
[333276619,1722015050464,-153.0,0.00014259,2]
[333276620,1722015050473,-153.0,0.00014259,2]
[333276621,1722015050482,-153.0,0.00014259,2]
[333276622,1722015050492,-153.0,0.00014259,2]
[333276623,1722015050501,-153.0,0.00014259,2]
[333276624,1722015050510,-153.0,0.00014259,2]
[333276625,1722015050520,-153.0,0.00014259,2]
[333276626,1722015050529,-153.0,0.00014259,2]
[333276627,1722015050538,-153.0,0.00014259,2]
[333276628,1722015050547,-153.0,0.00014259,2]
[333276629,1722015050556,-153.0,0.00014259,2]
[333276630,1722015050566,-153.0,0.00014259,2]
[333276631,1722015050575,-153.0,0.00014259,2]
[333276632,1722015050585,-153.0,0.00014259,2]
[333276633,1722015050594,-153.0,0.00014259,2]
[333276634,1722015050603,-153.0,0.00014259,2]
[333276635,1722015050613,-153.0,0.00014259,2]
[333276636,1722015050625,-153.0,0.00014259,2]
[333276637,1722015050635,-211.71623,0.0001426,2]
[333276638,1722015050644,-211.71623,0.0001426,2]
[333276639,1722015050654,-179.247721,0.0001426,2]
[333276640,1722015050664,-153.4394703,0.00014301,2]
[333276641,1722015050673,-600.0,0.00014356,2]
[333276642,1722015050683,-153.0,0.0001438,2]
[333276643,1722015050692,-153.0,0.0001438,2]
[333276644,1722015050701,-153.0,0.0001438,2]
[333276645,1722015050711,-153.0,0.0001438,2]
[333276646,1722015050721,-153.0,0.0001438,2]
[333276647,1722015050732,-153.0,0.0001438,2]
[333276648,1722015050743,-153.0,0.0001438,2]
[333276649,1722015050753,-153.0,0.0001438,2]
[333276650,1722015050762,-153.0,0.0001438,2]
[333276651,1722015050772,-153.0,0.0001438,2]
[333276652,1722015050782,-153.0,0.0001438,2]
[333276653,1722015050791,-197.909922,0.00014388,2]
[333276654,1722015050801,-152.093192,0.00014388,2]
[333276655,1722015050811,-151.0,0.00014388,2]
[333276656,1722015050821,-197.798972,0.00014388,2]
[333276657,1722015050831,-151.0,0.00014388,2]
[333276658,1722015050840,-151.0,0.00014388,2]
[333276659,1722015050850,-200.0,0.0001442,2]
[333276660,1722015050862,-370.284732,0.00014434,2]
[333276661,1722015050872,-370.284732,0.00014434,2]
[333276662,1722015050885,-1299.0446399,0.00014438,4]
[333276663,1722015050894,-960.188475,0.00014474,2]
[333276664,1722015050903,-801.343558,0.00014474,2]
[333276665,1722015050912,-801.343558,0.00014474,2]
[333276666,1722015050921,-3200.0,0.00014474,2]
[333276667,1722015050930,-300.191,0.00014474,2]
[333276668,1722015050940,-156.0,0.000145,2]
[333276669,1722015050949,-500.0,0.0001452,2]
[333276670,1722015050958,-500.0,0.0001452,2]
[333276671,1722015050968,-281.694257,0.0001452,2]
[333276672,1722015050978,-281.694257,0.0001452,2]
[333276673,1722015050987,-500.0,0.0001452,2]
[333276674,1722015050997,-151.0,0.0001452,2]
[333276675,1722015051006,-157.204566,0.0001452,2]
[333276676,1722015051016,-157.204566,0.0001452,2]
[333276677,1722015051030,-383.143264,0.0001452,2]
[333276678,1722015051040,-500.0,0.0001452,2]
[333276679,1722015051049,-500.0,0.0001452,2]
[333276680,1722015051059,-500.0,0.0001452,2]
[333276681,1722015051070,-383.143264,0.0001452,2]
[333276682,1722015051079,-881.59,0.0001452,2]
[333276683,1722015051089,-500.0,0.0001452,2]
[333276684,1722015051101,-500.0,0.0001452,2]
[333276685,1722015051113,-596.1,0.0001452,2]
[333276686,1722015051122,-736.52,0.0001452,2]
[333276687,1722015051131,-500.0,0.0001452,2]
[333276688,1722015051141,-500.0,0.0001452,2]
[333276689,1722015051151,-662.45,0.0001452,2]
[333276690,1722015051160,-500.0,0.0001452,2]
[333276691,1722015051170,-770.49,0.0001452,2]
[333276692,1722015051179,-500.0,0.0001452,2]
[333276693,1722015051189,-671.98,0.0001452,2]
[333276694,1722015051199,-950.24,0.0001452,2]
[333276695,1722015051208,-728.9,0.0001452,2]
[333276696,1722015051218,-500.0,0.0001452,2]
[333276697,1722015051228,-500.0,0.0001452,2]
[333276698,1722015051237,-420.41847658,0.0001452,2]
[333276699,1722015051247,-500.0,0.0001452,2]
[333276700,1722015051256,-151.0,0.0001452,2]
[333276701,1722015051266,-151.0,0.0001452,2]
[333276702,1722015051275,-177.9504,0.0001452,2]
[333276703,1722015051285,-500.0,0.0001452,2]
[333276704,1722015051295,-500.0,0.0001452,2]
[333276705,1722015051304,-500.0,0.0001452,2]
[333276706,1722015051314,-500.0,0.0001452,2]
[333276707,1722015051325,-500.0,0.0001452,2]
[333276708,1722015051335,-540.08,0.0001452,2]
[333276709,1722015051346,-840.77,0.0001452,2]
[333276710,1722015051355,-534.09194232,0.0001452,2]
[333276711,1722015051367,-616.77,0.0001452,2]
[333276712,1722015051376,-810.76,0.0001452,2]
[333276713,1722015051386,-500.0,0.0001452,2]
[333276714,1722015051396,-500.0,0.0001452,2]
[333276715,1722015051406,-1028.1,0.0001452,2]
[333276716,1722015051416,-500.0,0.0001452,2]
[333276717,1722015051426,-1487.11,0.0001452,2]
[333276718,1722015051435,-500.0,0.0001452,2]
[333276719,1722015051445,-500.0,0.0001452,2]
[333276720,1722015051454,-500.0,0.0001452,2]
[333276721,1722015051464,-500.0,0.0001452,2]
[333276722,1722015051474,-500.0,0.0001452,2]
[333276723,1722015051483,-500.0,0.0001452,2]
[333276724,1722015051493,-512.64,0.0001452,2]
[333276725,1722015051503,-512.18768842,0.0001452,2]
[333276726,1722015051512,-500.0,0.0001452,2]
[333276727,1722015051521,-510.83796348,0.0001452,2]
[333276728,1722015051531,-500.0,0.0001452,2]
[333276729,1722015051541,-500.0,0.0001452,2]
[333276730,1722015051551,-507.04371793,0.0001452,2]
[333276731,1722015051561,-550.75,0.0001452,2]
[333276732,1722015051570,-500.0,0.0001452,2]
[333276733,1722015051580,-500.0,0.0001452,2]
[333276734,1722015051590,-542.6,0.0001452,2]
[333276735,1722015051601,-500.0,0.0001452,2]
[333276736,1722015051613,-511.62744072,0.0001452,2]
[333276737,1722015051623,-500.0,0.0001452,2]
[333276738,1722015051632,-1877.8,0.0001452,2]
[333276739,1722015051642,-1008.59,0.0001452,2]
[333276740,1722015051651,-500.0,0.0001452,2]
[333276741,1722015051660,-760.62,0.0001452,2]
[333276742,1722015051670,-842.41,0.0001452,2]
[333276743,1722015051679,-5471.36,0.0001452,2]
[333276744,1722015051688,-500.0,0.0001452,2]
[333276745,1722015051698,-151.0,0.0001452,2]
[333276746,1722015051707,-500.0,0.0001452,2]
[333276747,1722015051716,-719.02,0.0001452,2]
[333276748,1722015051726,-1273.27,0.0001452,2]
[333276749,1722015051736,-500.0,0.0001452,2]
[333276750,1722015051746,-891.66,0.0001452,2]
[333276751,1722015051756,-500.0,0.0001452,2]
[333276752,1722015051765,-500.0,0.0001452,2]
[333276753,1722015051775,-500.0,0.0001452,2]
[333276754,1722015051784,-500.0,0.0001452,2]
[333276755,1722015051794,-4988.99,0.0001452,2]
[333276756,1722015051804,-500.0,0.0001452,2]
[333276757,1722015051813,-843.52,0.0001452,2]
[333276758,1722015051822,-500.0,0.0001452,2]
[333276759,1722015051832,-500.0,0.0001452,2]
[333276760,1722015051842,-696.33,0.0001452,2]
[333276761,1722015051852,-1876.22,0.0001452,2]
[333276762,1722015051862,-500.0,0.0001452,2]
[333276763,1722015051872,-500.0,0.0001452,2]
[333276764,1722015051882,-1724.63,0.0001452,2]
[333276765,1722015051891,-611.84,0.0001452,2]
[333276766,1722015051900,-1081.85,0.0001452,2]
[333276767,1722015051910,-500.0,0.0001452,2]
[333276768,1722015051919,-151.0,0.0001452,2]
[333276769,1722015051929,-500.0,0.0001452,2]
[333276770,1722015051939,-500.0,0.0001452,2]
[333276771,1722015051948,-868.13,0.0001452,2]
[333276772,1722015051957,-500.0,0.0001452,2]
[333276773,1722015051967,-757.57,0.0001452,2]
[333276774,1722015051976,-509.82,0.0001452,2]
[333276775,1722015051986,-1646.68,0.0001452,2]
[333276776,1722015052006,-500.0,0.0001452,2]
[333276777,1722015052016,-500.0,0.0001452,2]
[333276778,1722015052030,-896.92,0.0001452,2]
[333276779,1722015052040,-507.03,0.0001452,2]
[333276780,1722015052050,-500.0,0.0001452,2]
[333276781,1722015052059,-500.0,0.0001452,2]
[333276782,1722015052070,-642.72,0.0001452,2]
[333276783,1722015052081,-534.14,0.0001452,2]
[333276784,1722015052093,-3569.74,0.0001452,2]
[333276785,1722015052105,-500.0,0.0001452,2]
[333276786,1722015052115,-500.0,0.0001452,2]
[333276787,1722015052126,-634.31,0.0001452,2]
[333276788,1722015052136,-500.0,0.0001452,2]
[333276789,1722015052145,-1446.14,0.0001452,2]
[333276790,1722015052155,-558.32,0.0001452,2]
[333276791,1722015052166,-1466.16,0.0001452,2]
[333276792,1722015052176,-500.0,0.0001452,2]
[333276793,1722015052187,-815.3,0.0001452,2]
[333276794,1722015052197,-3040.98,0.0001452,2]
[333276795,1722015052207,-500.0,0.0001452,2]
[333276796,1722015052217,-698.58,0.0001452,2]
[333276797,1722015052228,-500.0,0.0001452,2]
[333276798,1722015052240,-500.0,0.0001452,2]
[333276799,1722015052251,-820.9,0.0001452,2]
[333276800,1722015052262,-574.99927375,0.0001452,2]